bitfinex-derivatives/quotes_BNBF0:USTF0_20251203
["timestamp","ask_amount","ask_price","bid_price","bid_amount"]
[1764805455493,0.18914328,920.39,919.45,0.67305299]
[1764805455697,0.18914328,920.39,919.46,0.67305299]
[1764805455993,0.18914328,920.39,919.47,0.67305299]
[1764805456197,0.18914328,920.39,919.48,0.67305299]
[1764805456396,0.18914328,920.39,919.49,0.67305299]
[1764805456599,0.18914328,920.39,919.5,0.67305299]
[1764805456899,0.18914328,920.39,919.37,1.225]
[1764805457100,0.18914328,920.39,919.38,0.67314557]
[1764805457300,0.18914328,920.39,919.39,0.67314557]
[1764805457500,0.18914328,920.39,919.4,0.67314557]
[1764805457800,0.18914328,920.39,919.41,0.67314557]
[1764805458002,0.18914328,920.39,919.42,0.67314557]
[1764805458295,0.18914328,920.39,919.43,0.67314557]
[1764805458499,0.18914328,920.39,919.44,0.67314557]
[1764805458696,0.18914328,920.39,919.45,0.67314557]
[1764805458894,0.18914328,920.39,919.46,0.67314557]
[1764805459095,0.18914328,920.39,919.47,0.67314557]
[1764805459296,0.18914328,920.39,919.48,0.67314557]
[1764805459502,0.18914328,920.39,919.49,0.67314557]
[1764805459697,0.18914328,920.39,919.5,0.67314557]
[1764805459900,0.18914328,920.39,919.51,0.67314557]
[1764805460201,0.18914328,920.39,919.37,1.225]
[1764805460401,0.18914328,920.39,919.38,0.67331743]
[1764805460601,0.18914328,920.39,919.39,0.67331743]
[1764805460801,0.18914328,920.39,919.4,0.67331743]
[1764805461001,0.18914328,920.39,919.41,0.67331743]
[1764805461201,0.18914328,920.39,919.42,0.67331743]
[1764805461400,0.18914328,920.39,919.43,0.67331743]
[1764805461701,0.18914328,920.39,919.44,0.67331743]
[1764805461901,0.18914328,920.39,919.45,0.67331743]
[1764805462196,0.18914328,920.39,919.46,0.67331743]
[1764805462400,0.18914328,920.39,919.47,0.67331743]
[1764805462600,0.18914328,920.39,919.48,0.67331743]
[1764805462797,0.18914328,920.39,919.49,0.67331743]
[1764805463001,0.18914328,920.39,919.5,0.67331743]
[1764805463196,0.18914328,920.39,919.51,0.67331743]
[1764805463498,0.18914328,920.39,919.52,0.67331743]
[1764805463697,0.18914328,920.39,919.53,0.67331743]
[1764805463898,0.18914328,920.39,919.54,0.67331743]
[1764805464196,0.18914328,920.39,919.55,0.67331743]
[1764805464499,0.18914328,920.39,919.56,0.67331743]
[1764805464699,0.18914328,920.39,919.57,0.67331743]
[1764805464999,0.18914328,920.39,919.58,0.67331743]
[1764805465199,0.18914328,920.39,919.59,0.67331743]
[1764805465401,0.18914328,920.39,919.6,0.67331743]
[1764805465701,0.18914328,920.39,919.61,0.67331743]
[1764805465901,0.18914328,920.39,919.62,0.67331743]
[1764805466097,0.18914328,920.39,919.5,1.079]
[1764805466298,0.18914328,920.39,919.51,0.67388845]
[1764805466598,0.18914328,920.39,919.52,0.67388845]
[1764805466800,0.18914328,920.39,919.53,0.67388845]
[1764805466995,0.18914328,920.39,919.54,0.67388845]
[1764805467197,0.18914328,920.39,919.55,0.67388845]
[1764805467401,0.18914328,920.39,919.56,0.67388845]
[1764805467601,0.18914328,920.39,919.57,0.67388845]
[1764805467798,0.18914328,920.39,919.58,0.67388845]
[1764805467998,0.18914328,920.39,919.59,0.67388845]
[1764805468201,0.18914328,920.39,919.6,0.67388845]
[1764805468398,0.18914328,920.39,919.61,0.67388845]
[1764805468602,0.18914328,920.39,919.62,0.67388845]
[1764805468802,0.18914328,920.39,919.63,0.67388845]
[1764805469103,0.18914328,920.39,919.64,0.67388845]
[1764805469402,0.18914328,920.39,919.65,0.67388845]
[1764805469603,0.18914328,920.39,919.66,0.67388845]
[1764805469803,0.18914328,920.39,919.67,0.67388845]
[1764805470004,1.61937618,920.52,919.68,0.67388845]
[1764805470201,1.61937618,920.52,919.69,0.67388845]
[1764805470405,1.61937618,920.52,919.7,0.67388845]
[1764805470603,1.61937618,920.52,919.5,1.079]
[1764805470902,1.61937618,920.52,919.51,0.67467662]
[1764805471200,1.61937618,920.52,919.52,0.67467662]
[1764805471404,1.61937618,920.53,919.53,0.67467662]
[1764805471605,1.61937618,920.53,919.54,0.67467662]
[1764805471905,1.61937618,920.53,919.5,1.079]
[1764805471906,1.61937618,920.55,919.55,0.67467662]
[1764805472105,1.61937618,920.55,919.56,0.67467662]
[1764805472303,1.61937618,920.56,919.57,0.67467662]
[1764805472505,1.61937618,920.56,919.58,0.67467662]
[1764805472800,1.61937618,920.56,919.59,0.67467662]
[1764805473004,1.61937618,920.56,919.6,0.67467662]
[1764805473300,1.61937618,920.56,919.61,0.67467662]
[1764805473501,1.61937618,920.56,919.62,0.67467662]
[1764805473701,1.61937618,920.56,919.63,0.67467662]
[1764805473902,1.61937618,920.56,919.64,0.67467662]
[1764805474105,1.61937618,920.56,919.65,0.67467662]
[1764805474301,1.61937618,920.57,919.66,0.67467662]
[1764805474501,0.18913763,920.34,919.67,0.67467662]
[1764805474805,0.18913763,920.34,919.68,0.67467662]
[1764805475000,0.18913763,920.34,919.69,0.67467662]
[1764805475201,0.18913763,920.34,919.7,0.67467662]
[1764805475400,0.18913763,920.34,919.7,0.863]
[1764805482006,0.18913763,920.34,919.71,0.889]
[1764805495520,1.08378513,920.37,919.71,0.889]
[1764805495721,1.08378513,920.66,919.72,0.80741309]
[1764805495923,0.18911039,920.62,919.72,0.80741309]
[1764805496325,0.18911039,920.62,919.71,1.69641309]
[1764805497425,0.18911039,920.62,919.71,0.889]
[1764805500625,1.27289552,920.62,919.71,0.889]
[1764805500831,1.08378513,920.56,919.71,0.889]
[1764805501527,1.08378513,920.57,919.71,0.889]
[1764805501831,1.08378513,920.58,919.71,0.889]
[1764805502833,1.08378513,920.49,919.71,0.889]
[1764805503636,1.08378513,920.43,919.71,0.889]
[1764805505435,1.08378513,920.42,919.71,0.889]
[1764805505736,1.08378513,920.45,919.71,0.889]
[1764805507846,1.08378513,920.44,919.71,0.889]
[1764805508042,1.08378513,920.45,919.71,0.889]
[1764805508341,1.08378513,920.44,919.71,0.889]
[1764805508839,1.08378513,920.41,919.71,0.889]
[1764805509043,1.08378513,920.37,919.71,0.889]
[1764805509244,1.08378513,920.33,919.71,0.889]
[1764805509439,1.08378513,920.21,919.71,0.889]
[1764805510439,1.08378513,920.2,919.71,0.889]
[1764805512142,1.08378513,920.2,919.7,0.863]
[1764805512542,1.08378513,920.21,919.7,0.863]
[1764805513246,1.08378513,920.2,919.7,0.863]
[1764805513445,1.08378513,920.21,919.7,0.863]
[1764805513648,1.08378513,920.25,919.7,0.863]
[1764805513848,1.08378513,920.25,919.71,0.944]
[1764805517155,1.08378513,920.26,919.71,0.944]
[1764805517356,1.08378513,920.42,919.71,0.944]
[1764805518357,1.08378513,920.41,919.71,0.944]
[1764805518854,1.08378513,920.44,919.71,0.944]
[1764805520157,1.08378513,920.42,919.71,0.944]
[1764805520551,1.08378513,920.45,919.71,0.944]
[1764805520754,1.08378513,920.44,919.71,0.944]
[1764805521152,1.08378513,920.45,919.71,0.944]
[1764805521356,1.08378513,920.55,919.71,0.944]
[1764805523162,1.08378513,920.57,919.71,0.944]
[1764805523360,1.08378513,920.58,919.71,0.944]
[1764805523958,0.18911039,920.62,919.71,0.944]
[1764805523959,0.18911039,920.62,919.72,0.68510122]
[1764805524258,0.18911039,920.62,919.73,0.68510122]
[1764805524460,0.18911039,920.62,919.74,0.68510122]
[1764805524660,0.18911039,920.62,919.75,0.68510122]
[1764805524858,0.18911039,920.62,919.76,0.68510122]
[1764805525057,0.18911039,920.62,919.77,0.68510122]
[1764805525261,0.18911039,920.62,919.78,0.68510122]
[1764805525461,0.18911039,920.62,919.79,0.68510122]
[1764805525662,0.18911039,920.62,919.8,0.68510122]
[1764805525959,0.18911039,920.62,919.81,0.68510122]
[1764805526161,0.18911039,920.62,919.82,0.68510122]
[1764805526362,0.18911039,920.62,919.83,0.68510122]
[1764805526564,0.18911039,920.62,919.84,0.68510122]
[1764805526859,0.18911039,920.62,919.85,0.68510122]
[1764805527159,0.18911039,920.62,919.86,0.68510122]
[1764805527357,0.18911039,920.62,919.87,0.68510122]
[1764805527562,0.18911039,920.62,919.88,0.68510122]
[1764805527762,0.18911039,920.62,919.89,0.68510122]
[1764805527961,0.18911039,920.62,919.9,0.68510122]
[1764805528163,0.18911039,920.62,919.91,0.68510122]
[1764805528362,0.18911039,920.62,919.92,0.68510122]
[1764805528558,0.18911039,920.62,919.93,0.68510122]
[1764805528761,0.18911039,920.62,919.71,0.944]
[1764805528964,0.18911039,920.62,919.72,0.68469765]
[1764805529159,0.18911039,920.62,919.73,0.68469765]
[1764805529357,0.18911039,920.62,919.74,0.68469765]
[1764805529559,0.18911039,920.62,919.75,0.68469765]
[1764805529759,0.18911039,920.62,919.76,0.68469765]
[1764805530064,0.18911039,920.62,919.77,1.66269765]
[1764805530262,0.18911039,920.62,919.78,0.68469765]
[1764805530557,0.18911039,920.62,919.79,0.68469765]
[1764805530762,0.18911039,920.62,919.8,0.68469765]
[1764805530963,0.18911039,920.62,919.81,0.68469765]
[1764805531163,0.18911039,920.62,919.82,0.68469765]
[1764805531463,0.18911039,920.62,919.83,0.68469765]
[1764805531663,0.18911039,920.62,919.84,0.68469765]
[1764805531864,0.18911039,920.62,919.85,0.68469765]
[1764805532065,0.18911039,920.62,919.86,0.68469765]
[1764805532264,0.18911039,920.62,919.87,0.68469765]
[1764805532563,0.18911039,920.62,919.88,0.68469765]
[1764805532764,0.18911039,920.62,919.89,0.68469765]
[1764805533064,0.18911039,920.62,919.9,0.68469765]
[1764805533364,0.18911039,920.62,919.91,0.68469765]
[1764805533564,0.18911039,920.62,919.92,0.68469765]
[1764805533763,0.18911039,920.62,919.93,0.68469765]
[1764805533961,1.61937618,921.0,919.94,0.68469765]
[1764805534165,1.61937618,921.0,919.95,0.68469765]
[1764805534462,1.61937618,921.01,919.96,0.68469765]
[1764805534664,1.61937618,921.01,919.97,0.68469765]
[1764805534964,0.18905646,920.74,919.98,0.68469765]
[1764805535164,0.18905646,920.74,919.99,0.68469765]
[1764805535461,0.18905646,920.74,920.0,0.68469765]
[1764805535661,0.18905646,920.74,920.01,0.68469765]
[1764805535866,0.18905646,920.74,920.02,0.68469765]
[1764805536066,0.18905646,920.74,920.03,0.68469765]
[1764805536264,0.18905646,920.74,920.04,0.68469765]
[1764805536563,0.18905646,920.74,920.05,0.68469765]
[1764805536866,0.18905646,920.74,920.06,0.68469765]
[1764805537066,0.18905646,920.74,920.07,0.68469765]
[1764805537262,0.18905646,920.74,919.77,1.78541309]
[1764805537463,0.18905646,920.74,919.78,0.68390664]
[1764805537666,0.18905646,920.74,919.79,0.68390664]
[1764805537863,0.18905646,920.74,919.8,0.68390664]
[1764805538063,0.18905646,920.74,919.81,0.68390664]
[1764805538266,0.18905646,920.74,919.82,0.68390664]
[1764805538467,0.18905646,920.74,919.83,0.68390664]
[1764805538763,0.18905646,920.74,919.84,0.68390664]
[1764805539068,0.18905646,920.74,919.85,0.68390664]
[1764805539267,0.18905646,920.74,919.86,0.68390664]
[1764805539464,0.18905646,920.74,919.87,0.68390664]
[1764805539663,0.18905646,920.74,919.88,0.68390664]
[1764805539963,0.18905646,920.74,919.89,0.68390664]
[1764805540164,0.18905646,920.74,919.9,0.68390664]
[1764805540467,0.18905646,920.74,919.91,0.68390664]
[1764805540767,0.18905646,920.74,919.92,0.68390664]
[1764805540962,0.18905646,920.74,919.93,0.68390664]
[1764805541269,0.18905646,920.74,919.94,0.68390664]
[1764805541568,0.18905646,920.74,919.95,0.68390664]
[1764805541769,0.18905646,920.74,919.96,0.68390664]
[1764805541968,0.18905646,920.74,919.97,0.68390664]
[1764805542168,0.18905646,920.74,919.98,0.68390664]
[1764805542368,0.18905646,920.74,919.99,0.68390664]
[1764805542570,0.18905646,920.74,920.0,0.68390664]
[1764805542766,0.18905646,920.74,920.01,0.68390664]
[1764805543067,0.18905646,920.74,920.02,0.68390664]
[1764805543270,0.18905646,920.74,920.03,0.68390664]
[1764805543471,0.18905646,920.74,920.04,0.68390664]
[1764805543770,0.18905646,920.74,919.77,0.978]
[1764805543970,0.18905646,920.74,919.78,0.68337902]
[1764805544170,0.18905646,920.74,919.79,0.68337902]
[1764805544370,0.18905646,920.74,919.8,0.68337902]
[1764805544568,0.18905646,920.74,919.81,0.68337902]
[1764805544770,0.18905646,920.74,919.82,0.68337902]
[1764805544971,0.18905646,920.74,919.83,0.68337902]
[1764805545264,0.18905646,920.74,919.77,0.978]
[1764805545265,0.18905646,920.74,919.84,0.68337902]
[1764805545470,0.18905646,920.74,919.85,0.68337902]
[1764805545671,0.18905646,920.74,919.86,0.68337902]
[1764805545971,1.61937618,921.16,919.87,0.68337902]
[1764805546172,0.18904362,920.83,919.88,0.68337902]
[1764805546374,1.61937618,921.26,919.89,0.68337902]
[1764805546671,0.20653894,922.67,919.89,0.68337902]
[1764805546672,0.18902514,920.98,919.9,0.68337902]
[1764805546873,0.18902514,920.98,919.91,0.68337902]
[1764805547168,0.18902514,920.98,919.92,0.68337902]
[1764805547373,0.18902514,920.98,919.93,0.68337902]
[1764805547669,0.18902514,920.98,920.0,0.80741309]
[1764805547872,0.18902514,920.98,920.01,0.68337902]
[1764805548072,0.18902514,920.98,920.02,0.68337902]
[1764805548373,0.18902514,920.98,920.03,0.68337902]
[1764805548567,0.18902514,920.98,920.04,0.68337902]
[1764805548769,0.18902514,920.98,920.05,0.68337902]
[1764805548973,0.18902514,920.98,920.06,0.68337902]
[1764805549173,0.18902514,920.98,920.07,0.68337902]
[1764805549474,0.18902514,920.98,920.08,0.68337902]
[1764805549674,0.18902514,920.98,920.09,0.68337902]
[1764805549873,0.18902514,920.98,920.1,0.68337902]
[1764805550074,0.18902514,920.98,920.11,0.68337902]
[1764805550274,0.18902514,920.98,920.12,0.68337902]
[1764805550472,0.18902514,920.98,920.13,0.68337902]
[1764805550670,0.18902514,920.98,920.14,0.68337902]
[1764805550871,0.18902514,920.98,920.15,0.68337902]
[1764805551070,0.18902514,920.98,920.16,0.68337902]
[1764805551273,0.18902514,920.98,920.17,0.68337902]
[1764805551471,0.18902514,920.98,920.18,0.68337902]
[1764805551675,0.18902514,920.98,920.19,0.68337902]
[1764805551874,0.18902514,920.98,920.2,0.68337902]
[1764805552174,0.18902514,920.98,920.21,0.68337902]
[1764805552374,0.18902514,920.98,920.22,0.68337902]
[1764805552574,0.18902514,920.98,920.23,0.68337902]
[1764805552776,0.18902514,920.98,919.94,0.80741309]
[1764805553075,0.18902514,920.98,919.95,0.6814914]
[1764805553273,0.18902514,920.98,919.96,0.6814914]
[1764805553471,0.18902514,920.98,919.97,0.6814914]
[1764805553671,0.18902514,920.98,919.98,0.6814914]
[1764805553975,0.18902514,920.98,919.99,0.6814914]
[1764805554176,0.18902514,920.98,920.0,0.6814914]
[1764805554376,0.18902514,920.98,920.01,0.6814914]
[1764805554575,0.18902514,920.98,920.02,0.6814914]
[1764805554778,0.18902514,920.98,920.03,0.6814914]
[1764805555071,0.18902514,920.98,920.04,0.6814914]
[1764805555375,0.18902514,920.98,920.05,0.6814914]
[1764805555576,0.18902514,920.98,920.06,0.6814914]
[1764805555776,0.18902514,920.98,920.07,0.6814914]
[1764805556077,0.18902514,920.98,920.08,0.6814914]
[1764805556276,0.18902514,920.98,920.09,0.6814914]
[1764805556576,0.18902514,920.98,920.1,0.6814914]
[1764805556775,0.18902514,920.98,920.11,0.6814914]
[1764805556972,0.18902514,920.98,920.12,0.6814914]
[1764805557175,0.18902514,920.98,920.13,0.6814914]
[1764805557373,0.18902514,920.98,920.14,0.6814914]
[1764805557572,0.18902514,920.98,920.15,0.6814914]
[1764805557776,1.61937618,921.62,920.16,0.6814914]
[1764805558077,1.61937618,921.62,920.17,0.6814914]
[1764805558272,1.61937618,921.63,920.18,0.6814914]
[1764805558476,0.18897484,921.26,920.19,0.6814914]
[1764805558774,0.18897484,921.26,920.2,0.6814914]
[1764805558976,0.18897484,921.26,920.21,0.6814914]
[1764805559177,0.18897484,921.26,920.22,0.6814914]
[1764805559477,0.18897484,921.26,920.23,0.6814914]
[1764805559774,0.18897484,921.26,920.24,0.6814914]
[1764805560072,0.18897484,921.26,920.25,0.6814914]
[1764805560273,0.18897484,921.26,920.26,0.6814914]
[1764805560476,0.18897484,921.26,920.27,0.6814914]
[1764805560677,0.18897484,921.26,920.28,0.6814914]
[1764805560873,0.18897484,921.26,920.29,0.6814914]
[1764805561077,0.18897484,921.26,920.3,0.6814914]
[1764805561277,0.18897484,921.26,920.27,0.768]
[1764805561472,0.18897484,921.26,920.28,0.67942035]
[1764805561777,0.18897484,921.26,920.27,0.768]
[1764805561977,0.18897484,921.26,920.28,0.67939265]
[1764805562178,0.18897484,921.26,920.29,0.67959871]
[1764805562478,0.18897484,921.26,920.3,0.67954287]
[1764805562679,0.18897484,921.26,920.27,0.768]
[1764805562877,0.18897484,921.26,920.28,0.67953108]
[1764805563073,0.18897484,921.26,920.29,0.67953108]
[1764805563273,0.18897484,921.26,920.3,0.67953108]
[1764805563478,0.18897484,921.26,920.27,0.768]
[1764805563678,0.18897484,921.26,920.28,0.67937336]
[1764805563976,0.18897484,921.26,920.29,0.67937336]
[1764805564179,0.18897484,921.26,920.3,0.67937336]
[1764805564476,0.18897484,921.26,920.27,0.768]
[1764805564679,0.18897484,921.26,920.28,0.67928307]
[1764805564880,0.18897484,921.26,920.29,0.67928307]
[1764805565076,0.18897484,921.26,920.27,0.768]
[1764805565278,0.18897484,921.26,920.28,0.67928313]
[1764805565476,0.18897484,921.26,920.29,0.67928313]
[1764805565681,0.18897484,921.26,920.27,0.768]
[1764805565879,0.18897484,921.26,920.28,0.67920805]
[1764805566078,0.18897484,921.26,920.29,0.67920805]
[1764805566277,0.18897484,921.26,920.27,0.768]
[1764805566577,0.18897484,921.26,920.28,0.67938513]
[1764805566878,0.18897484,921.26,920.29,0.67938513]
[1764805567078,0.18897484,921.26,920.27,0.768]
[1764805567382,0.18897484,921.26,920.28,0.67940355]
[1764805567582,0.18897484,921.26,920.29,0.67940355]
[1764805567784,0.18897484,921.26,920.27,0.768]
[1764805567981,0.18897484,921.26,920.28,0.67935152]
[1764805568178,0.18897484,921.26,920.29,0.67935152]
[1764805568381,0.18897484,921.26,920.27,0.768]
[1764805568681,0.18897484,921.26,920.28,0.67931244]
[1764805568887,0.18897484,921.26,920.29,0.67931244]
[1764805569085,0.18897484,921.26,920.3,0.67931244]
[1764805569286,0.18897484,921.26,920.31,0.67931244]
[1764805569485,0.18897484,921.26,920.32,0.67931244]
[1764805569686,0.18897484,921.26,920.33,0.67931244]
[1764805569887,0.18897484,921.26,920.27,0.768]
[1764805569888,0.18897484,921.26,920.34,0.67931244]
[1764805570182,0.18897484,921.26,920.35,0.67931244]
[1764805570383,0.18897484,921.26,920.36,0.67931244]
[1764805570586,0.18897484,921.26,920.37,0.67931244]
[1764805570787,0.18897484,921.26,920.38,0.67931244]
[1764805571086,0.18897484,921.26,920.39,0.67931244]
[1764805571286,0.18897484,921.26,920.4,0.67931244]
[1764805571481,0.18897484,921.26,920.41,0.67931244]
[1764805571687,0.18897484,921.26,920.42,0.67931244]
[1764805571886,0.18897484,921.26,920.27,0.768]
[1764805571887,0.18897484,921.26,920.43,0.67931244]
[1764805572087,0.18897484,921.26,920.44,0.67931244]
[1764805572284,0.18897484,921.26,920.45,0.67931244]
[1764805572488,0.18897484,921.26,920.46,0.67931244]
[1764805572689,0.18897484,921.26,920.27,0.768]
[1764805572985,0.18897484,921.26,920.28,0.67915108]
[1764805573182,0.18897484,921.26,920.29,0.67915108]
[1764805573484,0.18897484,921.26,920.3,0.67915108]
[1764805573788,0.18897484,921.26,920.31,0.67915108]
[1764805573984,1.61937618,921.97,920.32,0.67915108]
[1764805574184,1.61937618,921.97,920.27,0.768]
[1764805574185,0.18892047,921.4,920.33,0.67915108]
[1764805574383,1.61937618,921.98,920.34,0.67915108]
[1764805574583,0.18891585,921.4,920.35,0.67915108]
[1764805574785,1.61937618,921.98,920.36,0.67915108]
[1764805574983,1.61937618,921.98,920.37,0.67915108]
[1764805575187,1.61937618,921.99,920.38,0.67915108]
[1764805575383,1.61937618,921.97,920.39,0.67915108]
[1764805575589,1.61937618,921.97,920.4,0.67915108]
[1764805575887,1.61937618,921.97,920.41,0.67915108]
[1764805576189,0.18891277,921.58,920.42,0.67915108]
[1764805576484,0.18891277,921.58,920.43,0.67915108]
[1764805576684,0.18891277,921.58,920.44,0.67915108]
[1764805576885,0.18891277,921.58,920.45,0.67915108]
[1764805577184,0.18891277,921.58,920.46,0.67915108]
[1764805577388,0.18891277,921.58,920.47,0.67915108]
[1764805577683,0.18891277,921.58,920.48,0.67915108]
[1764805577888,0.18891277,921.58,920.49,0.67915108]
[1764805578085,0.18891277,921.58,920.5,0.67915108]
[1764805578290,0.18891277,921.58,920.51,0.67915108]
[1764805578585,0.18891277,921.58,920.52,0.67915108]
[1764805578786,0.18891277,921.58,920.53,0.67915108]
[1764805578989,0.18891277,921.58,920.54,0.67915108]
[1764805579285,0.18891277,921.58,920.55,0.67915108]
[1764805579589,0.18891277,921.58,920.56,0.67915108]
[1764805579889,0.18891277,921.58,920.57,0.67915108]
[1764805580090,0.18891277,921.58,920.58,0.67915108]
[1764805580391,0.18891277,921.58,920.59,0.67915108]
[1764805580690,0.18891277,921.58,920.6,0.67915108]
[1764805580887,0.18891277,921.58,920.61,0.67915108]
[1764805581186,0.18891277,921.58,920.62,0.67915108]
[1764805581390,0.18891277,921.58,920.63,0.67915108]
[1764805581588,0.18891277,921.58,920.64,0.67915108]
[1764805581889,0.18891277,921.58,920.65,0.67915108]
[1764805582090,0.18891277,921.58,920.66,0.67915108]
[1764805582390,0.18891277,921.58,920.67,0.67915108]
[1764805582690,0.18891277,921.58,920.68,0.67915108]
[1764805582986,0.18891277,921.58,920.69,0.67915108]
[1764805583191,1.61937618,922.19,920.7,0.67915108]
[1764805583384,1.61937618,922.2,920.71,0.67915108]
[1764805583589,0.1888569,921.71,920.72,0.67915108]
[1764805583786,1.61937618,922.2,920.73,0.67915108]
[1764805584089,0.1888528,921.71,920.74,0.67915108]
[1764805584390,1.61937618,922.21,920.75,0.67915108]
[1764805584590,1.61937618,922.21,920.45,0.80741309]
[1764805584789,1.61937618,922.21,920.46,0.67875865]
[1764805585085,1.61937618,922.21,920.47,0.67875865]
[1764805585290,1.61937618,922.23,920.48,0.67875865]
[1764805585585,3.80501533,923.22,920.45,0.80741309]
[1764805585586,0.1888651,921.78,920.49,0.67875865]
[1764805585791,0.1888651,921.78,920.5,0.67875865]
[1764805586087,0.1888651,921.78,920.53,0.80741309]
[1764805586390,1.61937618,922.47,920.68,0.80741309]
[1764805586590,0.18883589,921.92,920.69,0.67875865]
[1764805586791,1.61937618,922.47,920.7,0.67875865]
[1764805586988,0.18881899,921.92,920.71,0.67875865]
[1764805587186,1.61937618,922.47,920.72,0.67875865]
[1764805587392,1.61937618,922.51,920.73,0.67875865]
[1764805587590,1.61937618,922.54,920.74,0.67875865]
[1764805587792,1.61937618,922.54,920.75,0.67875865]
[1764805587989,1.61937618,922.54,920.76,0.67875865]
[1764805588293,1.61937618,922.57,920.77,0.67875865]
[1764805588494,0.18881181,922.1,920.78,0.67875865]
[1764805588689,0.18881181,922.1,920.79,0.67875865]
[1764805588992,0.18881181,922.1,920.8,0.67875865]
[1764805589193,0.18881181,922.1,920.81,0.67875865]
[1764805589392,0.18881181,922.1,920.82,0.67875865]
[1764805589590,0.18881181,922.1,920.83,0.67875865]
[1764805589893,0.18881181,922.1,920.84,0.67875865]
[1764805590094,0.18881181,922.1,920.85,0.67875865]
[1764805590295,0.18881181,922.1,920.86,0.67875865]
[1764805590495,0.18881181,922.1,920.87,0.67875865]
[1764805590695,0.18881181,922.1,920.88,0.67875865]
[1764805590895,0.18881181,922.1,920.89,0.67875865]
[1764805591091,0.18881181,922.1,920.9,0.67875865]
[1764805591392,0.18881181,922.1,920.91,0.67875865]
[1764805591596,0.18881181,922.1,920.5,1.154]
[1764805591597,0.18881181,922.1,920.92,0.67875865]
[1764805591897,0.18881181,922.1,920.93,0.67875865]
[1764805592096,0.18881181,922.1,920.94,0.67875865]
[1764805592296,0.18881181,922.1,920.95,0.67875865]
[1764805592497,0.18881181,922.1,920.96,0.67875865]
[1764805592695,0.18881181,922.1,920.67,0.80741309]
[1764805592994,0.18881181,922.1,920.72,0.80741309]
[1764805593195,0.18881181,922.1,920.82,0.80741309]
[1764805593396,0.18881181,922.1,920.83,1.48461278]
[1764805593696,0.18881181,922.1,920.84,0.67719969]
[1764805593894,0.18881181,922.1,920.85,0.67719969]
[1764805594102,0.18881181,922.1,920.86,0.67719969]
[1764805594301,0.18881181,922.1,920.87,0.67719969]
[1764805594501,0.18881181,922.1,920.82,0.80741309]
[1764805594502,0.18881181,922.1,920.88,0.67719969]
[1764805594700,0.18881181,922.1,920.89,0.67719969]
[1764805594897,0.18881181,922.1,920.9,0.67719969]
[1764805595101,0.18881181,922.1,920.91,0.67719969]
[1764805595297,0.18881181,922.1,920.92,0.67719969]
[1764805595602,0.18881181,922.1,920.93,0.67719969]
[1764805595802,0.18881181,922.1,920.94,0.67719969]
[1764805595999,0.18881181,922.1,920.95,0.67719969]
[1764805596203,0.18881181,922.1,920.96,0.67719969]
[1764805596503,0.18881181,922.1,920.97,0.67719969]
[1764805596703,0.18881181,922.1,920.98,0.67719969]
[1764805596901,0.18881181,922.1,920.99,0.67719969]
[1764805597099,0.18881181,922.1,921.0,0.67719969]
[1764805597304,0.18881181,922.1,921.01,0.67719969]
[1764805597499,0.18881181,922.1,921.02,0.67719969]
[1764805597705,0.18881181,922.1,921.03,0.67719969]
[1764805597904,0.18881181,922.1,921.04,0.67719969]
[1764805598205,0.18881181,922.1,921.05,0.67719969]
[1764805598505,0.18881181,922.1,920.68,0.80741309]
[1764805598806,0.18881181,922.1,920.69,0.67715209]
[1764805599001,0.18881181,922.1,920.7,0.67715209]
[1764805599203,0.18881181,922.1,920.71,0.67715209]
[1764805599504,0.18881181,922.1,920.72,0.67715209]
[1764805599704,0.18881181,922.1,920.61,0.80741309]
[1764805599705,0.18881181,922.1,920.73,0.67715209]
[1764805599904,0.18881181,922.1,920.74,0.67715209]
[1764805600200,0.18881181,922.1,920.43,0.80741309]
[1764805600400,0.18881181,922.1,920.44,0.67774191]
[1764805600598,0.18881181,922.1,920.45,0.67774191]
[1764805600801,0.18881181,922.1,920.46,0.67774191]
[1764805601004,0.18881181,922.1,920.47,0.67774191]
[1764805601202,0.18881181,922.1,920.48,0.67774191]
[1764805601400,0.18881181,922.1,920.49,0.67774191]
[1764805601602,0.18881181,922.1,920.5,0.67774191]
[1764805601805,0.18881181,922.1,920.51,0.67774191]
[1764805602104,0.18881181,922.1,920.52,0.67774191]
[1764805602302,0.18881181,922.1,920.53,0.67774191]
[1764805602506,0.18881181,922.1,920.54,0.67774191]
[1764805602703,0.18881181,922.1,920.55,0.67774191]
[1764805602902,0.18881181,922.1,920.56,0.67774191]
[1764805603110,0.18881181,922.1,920.57,0.67774191]
[1764805603308,0.18881181,922.1,920.58,0.67774191]
[1764805603503,0.18881181,922.1,920.59,0.67774191]
[1764805603803,0.18881181,922.1,920.63,0.80741309]
[1764805604108,0.18881181,922.1,920.64,0.67774191]
[1764805604407,0.18881181,922.1,920.65,0.67774191]
[1764805604604,0.18881181,922.1,920.66,0.67774191]
[1764805604805,0.18881181,922.1,920.67,0.67774191]
[1764805605006,0.18881181,922.1,920.68,0.67774191]
[1764805605203,0.18881181,922.1,920.69,0.67774191]
[1764805605405,0.18881181,922.1,920.7,0.67774191]